Cogmind - Beta 13 @@@ ROGUE MODE // 2024.04.07 @ 10:26:42 Player: Silis Result: Destroyed by L-41 Fighter with Axe Performance ------------- Evolutions (3) 1500 Regions Visited (4) 800 Robots Destroyed (57) 285 Value Destroyed (1490) 1490 Prototype IDs (0) 0 Alien Tech Used (0) 0 Bonus (39) 39 TOTAL SCORE: 4114 Bonus ------- High Alert Combat Kills 39 Cogmind --------- Core Integrity 0/700 Matter 13/300 Energy 100/100 System Corruption 0% Temperature Cool (0) Movement Core (450) Ox8 Location -7/Factory Parts ------- > --- POWER (2) -------- (None) > --- PROPULSION (4) --- (None) > --- UTILITY (4) ------ Small Storage Unit Large Storage Unit Advanced Terrain Scan Processor > --- WEAPON (3) ------- (None) > --- INVENTORY (15) --- Ion Engine Light Ion Engine Deuterium Engine Deuterium Engine Light Treads Light Treads Light Treads Light Treads Heavy Laser Minigun Flak Cannon Peak State ------------ > --- POWER ------------ Deuterium Engine Light Nuclear Core > --- PROPULSION ------- Armored Treads Armored Treads Armored Treads Armored Treads > --- UTILITY ---------- Small Storage Unit Large Storage Unit Terrain Scanner Advanced Terrain Scan Processor > --- WEAPON ----------- Heavy Rocket Launcher Heavy Rocket Launcher Heavy Rocket Launcher > --- INVENTORY -------- Ion Engine Light Ion Engine Deuterium Engine Deuterium Engine Light Treads Light Treads Light Treads Light Treads Heavy Laser Minigun Flak Cannon Heavy Rocket Launcher [Rating: 39] Favorites ----------- Power Deuterium Engine Engine Deuterium Engine Power Core Light Nuclear Core Propulsion Light Treads Treads Light Treads Leg Aluminum Leg Utility Terrain Scanner Device Terrain Scanner Storage Large Storage Unit Processor Advanced Terrain Scan Processor Weapon EM Pulse Gun Energy Gun EM Pulse Gun Ballistic Gun Light Assault Rifle Ballistic Cannon Flak Cannon Launcher Heavy Rocket Launcher Build | -11 -10 -9 -8 -7 ------- Run | Yrd Mat Mat Mat Fac Slots Evolved 6 | . . 2 2 2 Power 1 | . . 1 . . Propulsion 2 | . . 1 1 . Utility 2 | . . . . 2 Weapon 1 | . . . 1 . Parts Attached 42 | 6 2 5 18 11 Power 6 | 1 . 2 3 . Engine 5 | 1 . 2 2 . Core 1 | . . . 1 . Reactor . | . . . . . Propulsion 16 | 2 . 2 8 4 Treads 12 | 2 . 1 5 4 Leg 4 | . . 1 3 . Wheel . | . . . . . Hover . | . . . . . Flight . | . . . . . Utility 5 | 1 2 . . 2 Device 1 | . 1 . . . Storage 3 | 1 1 . . 1 Processor 1 | . . . . 1 Hackware . | . . . . . Protection . | . . . . . Artifact . | . . . . . Weapon 15 | 2 . 1 7 5 Energy Gun 5 | 2 . . 2 1 Energy Cannon . | . . . . . Ballistic Gun 4 | . . 1 3 . Ballistic Cannon 1 | . . . 1 . Launcher 5 | . . . 1 4 Special Weapon . | . . . . . Impact Weapon . | . . . . . Slashing Weapon . | . . . . . Piercing Weapon . | . . . . . Special Melee Weapon . | . . . . . Unidentified Prototypes . | . . . . . Corrupted Parts 1 | . . . 1 . System Corruption 1 | . . . 1 . Parts Lost 18 | . . 2 5 11 Power 5 | . . 1 2 2 Propulsion 5 | . . . 1 4 Utility 1 | . . . . 1 Weapon 7 | . . 1 2 4 Highest Loss Streak 9 | . . 2 5 9 To Critical Strikes . | . . . . . Average Slot Usage (%) 94 | . 98 92 94 92 Engine 13 | . 14 21 15 5 Core 2 | . . . 1 5 Treads 27 | . 28 29 24 29 Leg 3 | . . 3 7 . Device 9 | . 12 11 9 6 Storage 12 | . 14 11 9 15 Processor 1 | . . . . 5 Energy Gun 14 | . 28 14 6 13 Ballistic Gun 3 | . . . 11 . Ballistic Cannon 1 | . . . 3 1 Launcher 3 | . . . 4 6 Naked Turns . | . . . . . Heaviest Build 61 | 12 28 38 51 61 Greatest Support 80 | 40 40 60 80 80 Greatest Overweight (x) 8 | . . . 1 8 Average Overweight (x) . | . . . . . Largest Inventory Capacity 15 | 8 15 15 15 15 Average Capacity 14 | 7 13 15 15 15 Most Carried 15 | 4 10 13 15 15 Average Carried 10 | 2 7 10 10 13 Final Capacity 15 | 8 15 15 15 15 Final Carried 13 | 4 9 10 13 11 Class Distribution -------------------- 49% | Mutant 39% | Skirmisher 10% | Scavenger-Skirmisher Dominant Class ---------------- Mutant | -10/Materials Mutant | -9/Materials Skirmisher | -8/Materials Skirmisher | -7/Factory Resources | -11 -10 -9 -8 -7 ----------- Run | Yrd Mat Mat Mat Fac Matter Collected 900 | 210 63 50 385 192 Remotely . | . . . . . Salvage Created 1306 | . 113 177 557 459 Parts 98 | . 9 12 51 26 Haulers Intercepted 2 | . . . . 2 Recyclers Shooed . | . . . . . Parts Field Recycled . | . . . . . Retrieved Matter . | . . . . . Parts Self-Destructed . | . . . . . Prevented . | . . . . . Kills | -11 -10 -9 -8 -7 ------- Run | Yrd Mat Mat Mat Fac Combat Hostiles Destroyed 36 | . 3 5 19 9 Melee 1 | . . . . 1 Guns 12 | . 2 5 5 . Cannons 3 | . . . 3 . AOE 19 | . 1 . 11 7 Classes Destroyed 11 | . 1 2 4 4 Worker 8 | . . . 1 7 Builder 4 | . . . 2 2 Tunneler 1 | . . . . 1 Hauler 2 | . . . . 2 Recycler 1 | . . . . 1 Operator 2 | . . . 2 . Watcher 3 | . . . 3 . Swarmer 10 | . . 3 7 . Grunt 16 | . 3 . 6 7 Brawler 1 | . . . . 1 Sentry 9 | . . 2 6 1 Best Kill Streak 9 | . 1 2 7 9 Combat Bots Only 6 | . 1 2 6 4 Max Kills in Single Turn 9 | . 1 1 3 9 Gunslinging . | . . . . . Exploded 4 | . 1 . 2 4 Melee 1 | . . . . 1 Uniques/NPCs Destroyed . | . . . . . Combat | -11 -10 -9 -8 -7 -------- Run | Yrd Mat Mat Mat Fac Hostile Shots Fired 347 | . 6 23 105 213 Missed 122 | . . 7 31 84 Damage Taken 3863 | . 64 185 1059 2555 Core 834 | . . . 124 710 Absorbed by Shields . | . . . . . Core Remaining (%) 94 | 100 100 100 77 . Volleys Fired 78 | . 5 14 44 15 Largest 3 | . 2 2 3 3 Hottest 181 | . 80 80 156 181 Shots Fired 193 | . 10 24 121 38 Gun 139 | . 10 24 81 24 Cannon 15 | . . . 14 1 Launcher 39 | . . . 26 13 Special . | . . . . . Kinetic 69 | . . . 68 1 Thermal 28 | . . . 4 24 Explosive 39 | . . . 26 13 Electromagnetic 57 | . 10 24 23 . Robot Hit Streak 14 | . 3 4 14 6 Robot Miss Streak 9 | . 2 4 9 4 Penetration Max . | . . . . . Secondary Targets 1 | . . 1 . . Max Gunslinging Chain 1 | . . 1 . . Shots Hit Robots 95 | . 5 9 57 24 Core Hits 126 | . 5 8 62 51 Critical Kills . | . . . . . Critical Parts Destroyed . | . . . . . Critical Strikes 1 | . . . . 1 Burn 1 | . . . . 1 Melee Attacks . | . . . . . Impact . | . . . . . Slashing . | . . . . . Piercing . | . . . . . Sneak Attacks . | . . . . . Combat Hostiles . | . . . . . Follow-up Attacks . | . . . . . Damage Inflicted 4323 | . 113 173 1809 2228 Guns 925 | . 70 150 473 232 Cannons 198 | . . . 179 19 Explosions 3145 | . 41 . 1142 1962 Melee . | . . . . . Ramming 55 | . 2 23 15 15 Kinetic 502 | . . . 483 19 Thermal 470 | . 41 . 74 355 Explosive 2936 | . . . 1097 1839 Electromagnetic 360 | . 70 150 140 . Impact . | . . . . . Slashing . | . . . . . Piercing . | . . . . . Highest Corruption 1 | . . . 1 . Average Corruption 1 | . . . 1 . Corruption Purged . | . . . . . Corruption Blocked . | . . . . . Effects 3 | . . . 3 . Message Errors 1 | . . . 1 . Matter Fused 1 | . . . 1 . Energy Discharges 1 | . . . 1 . Overload Shots . | . . . . . Overflow Damage 94 | . . . 9 85 Projectiles . | . . . . . Explosions 94 | . . . 9 85 Melee . | . . . . . Knockbacks 2 | . . . 2 . Impact . | . . . . . Kinetic 2 | . . . 2 . Secondary . | . . . . . Self-Inflicted Damage 510 | . . . 98 412 Shots 14 | . . . 6 8 Rammed 11 | . 2 6 . 3 Targets Rammed 12 | . 2 6 1 3 Kicked 1 | . . . 1 . Crushed . | . . . . . Highest Temperature 692 | . 66 81 224 692 Average Temperature 97 | . 27 36 73 208 Received Heat Transfer 921 | . 36 45 351 489 Effects 12 | . . . . 12 Shutdowns 4 | . . . . 4 Energy Bleed 1 | . . . . 1 Interference 2 | . . . . 2 Matter Decay 1 | . . . . 1 Short Circuit 2 | . . . . 2 Damage (minor) 1 | . . . . 1 Damage (core) 1 | . . . . 1 Siege Activations . | . . . . . Robots Corrupted . | . . . . . Combat Hostiles . | . . . . . Parts Fried 1 | . . . 1 . Impact Corruptions . | . . . . . Robots Melted 1 | . . . . 1 Combat Hostiles 1 | . . . . 1 Parts Melted . | . . . . . Heat Transferred 903 | . 50 . 124 729 Parts Sabotaged . | . . . . . Parts Stolen . | . . . . . Parts Stripped . | . . . . . Power Chain Reactions 2 | . 1 . 1 . Alert | -11 -10 -9 -8 -7 ------- Run | Yrd Mat Mat Mat Fac Peak Influence 497 | . 90 192 497 270 Initial 188 | . . . . 188 Average 166 | . 32 117 291 208 Maximum Alert Level 2 | . . . 2 1 Low Security (%) 65 | 100 100 100 28 44 Level 1 30 | . . . 54 55 Level 2 4 | . . . 16 . Level 3 . | . . . . . Level 4 . | . . . . . Level 5 . | . . . . . High Security . | . . . . . Max Security . | . . . . . Squads Dispatched 14 | . 2 2 6 4 Investigation 3 | . 2 . 1 . Extermination . | . . . . . Reinforcement 8 | . . 2 2 4 Assault . | . . . . . Garrison 3 | . . . 3 . Intercept . | . . . . . Searches Triggered . | . . . . . Construction Impeded . | . . . . . Haulers Reinforced 1 | . . . . 1 Active Scanning Responses . | . . . . . Cargo Convoy Interrupts . | . . . . . Stealth | -11 -10 -9 -8 -7 --------- Run | Yrd Mat Mat Mat Fac Distress Signals 6 | . . 2 3 1 Communications Jammed . | . . . . . Distress Signals . | . . . . . Times Spotted 55 | . 3 9 27 16 Peak Tracking Total 7 | . 1 3 6 7 Tactical Retreats 3 | . . 2 1 . Traps | -11 -10 -9 -8 -7 ------- Run | Yrd Mat Mat Mat Fac Traps Triggered 2 | . 1 . . 1 Indirectly . | . . . . . Trap Hack Attempts . | . . . . . Triggered . | . . . . . Disarmed . | . . . . . Reprogrammed . | . . . . . Reused . | . . . . . Traps Extracted . | . . . . . Installed . | . . . . . Triggered . | . . . . . Machines | -11 -10 -9 -8 -7 ---------- Run | Yrd Mat Mat Mat Fac Machines Disabled 6 | . . . 2 4 Max in Single Turn 3 | . . . 1 3 Machines Repaired . | . . . . . Machines Dismantled . | . . . . . Machines Sabotaged . | . . . . . Overloaded Fab Kills . | . . . . . Hacking | -11 -10 -9 -8 -7 --------- Run | Yrd Mat Mat Mat Fac Machines Accessed 5 | . 2 2 1 . Terminals 3 | . 1 1 1 . Fabricators . | . . . . . Repair Stations 1 | . 1 . . . Recycling Units 1 | . . 1 . . Scanalyzers . | . . . . . Garrison Access . | . . . . . Total Hacks 17 | . 7 7 3 . Successful 14 | . 5 6 3 . Failed 3 | . 2 1 . . Catastrophic . | . . . . . Database Lockouts . | . . . . . Manual . | . . . . . Terminals 11 | . 4 4 3 . Fabricators . | . . . . . Repair Stations 3 | . 3 . . . Recycling Units 3 | . . 3 . . Scanalyzers . | . . . . . Garrison Access . | . . . . . Terminal Hacks 9 | . 3 3 3 . Record 6 | . 3 . 3 . Branch Access Points 1 | . . 1 . . Maintenance Status 1 | . . 1 . . Reinforcement Status 1 | . . 1 . . Fabricator Hacks . | . . . . . Repair Station Hacks 2 | . 2 . . . Scan Component 2 | . 2 . . . Recycling Unit Hacks 3 | . . 3 . . Process 1 | . . 1 . . Report Inventory 1 | . . 1 . . Retrieve Matter 1 | . . 1 . . Scanalyzer . | . . . . . Garrison Access Hacks . | . . . . . Unauthorized Hacks . | . . . . . Terminals . | . . . . . Fabricators . | . . . . . Repair Stations . | . . . . . Recycling Units . | . . . . . Scanalyzers . | . . . . . Garrison Access . | . . . . . Data Cores Recovered . | . . . . . Used . | . . . . . Hacking Detections 4 | . 2 1 1 . Full Trace Events 3 | . 2 . 1 . Feedback Events . | . . . . . Feedback Blocked . | . . . . . Robot Schematics Acquired . | . . . . . Robots Built . | . . . . . Authchips . | . . . . . Time . | . . . . . Total Robot Build Rating . | . . . . . Part Schematics Acquired . | . . . . . Parts Built . | . . . . . Authchips . | . . . . . Time . | . . . . . Total Part Build Rating . | . . . . . Parts Repaired . | . . . . . Time . | . . . . . Parts Recycled . | . . . . . Recycled Matter 178 | . . 178 . . Retrieved Matter 7 | . . 7 . . Retrieved Components . | . . . . . Parts Scanalyzed . | . . . . . Part Schematics Acquired . | . . . . . Parts Damaged . | . . . . . Bothacking | -11 -10 -9 -8 -7 ------------ Run | Yrd Mat Mat Mat Fac Used RIF Installer . | . . . . . Robots Hacked . | . . . . . Non-combat . | . . . . . Combat . | . . . . . Robot Hacks Applied . | . . . . . Relay Couplers Released . | . . . . . Fabnet Peak Effective % . | . . . . . Robots Rewired . | . . . . . Allies Hacked . | . . . . . Hacks Repelled . | . . . . . Allies | -11 -10 -9 -8 -7 -------- Run | Yrd Mat Mat Mat Fac Total Allies . | . . . . . Largest Group . | . . . . . Highest-Rated Group . | . . . . . Highest-Rated Ally . | . . . . . Total Orders . | . . . . . Ally Attacks . | . . . . . Total Damage . | . . . . . Kills . | . . . . . Allies Corrupted . | . . . . . Allies Melted . | . . . . . Intel | -11 -10 -9 -8 -7 ------- Run | Yrd Mat Mat Mat Fac Robot Analysis Total . | . . . . . Derelict Logs Recovered . | . . . . . Drone Launches . | . . . . . Drone Recoveries . | . . . . . Exploration | -11 -10 -9 -8 -7 ------------- Run | Yrd Mat Mat Mat Fac Turns Passed 2316 | 170 417 465 660 604 Spaces Moved 1244 | 151 242 254 293 304 Core 81 | 79 . . . 2 Treads 1092 | 72 242 254 222 302 Legs 71 | . . . 71 . Wheels . | . . . . . Hover . | . . . . . Flight . | . . . . . Fastest Speed 50 | 50 160 160 160 160 Average Speed 158 | 102 160 160 167 174 Slowest Speed 450 | 160 160 160 190 450 Overloaded Moves . | . . . . . Propulsion Burnouts . | . . . . . Robots Hopped . | . . . . . Cave-ins Triggered . | . . . . . Exploration Rate (%) 19 | 8 29 21 29 12 Regions Visited 4 Branch Regions . Pre-discovered Areas . | . . . . . Known Exits Taken . | . . . . . Unknown Exits Taken 4 | 1 1 1 1 . Scrap Searched . | . . . . . Spaces Dug . | . . . . . Terrain Destroyed 130 | . 4 . 91 35 Melee . | . . . . . Projectile . | . . . . . AOE 130 | . 4 . 91 35 Terrain Rammed . | . . . . . Walls Destroyed . | . . . . . Machines Disabled . | . . . . . Actions | -11 -10 -9 -8 -7 --------- Run | Yrd Mat Mat Mat Fac Total 1440 | 166 262 285 381 346 Wait . | . . . . . Move 1240 | 150 241 253 292 304 Hop . | . . . . . Pick Up 44 | 10 9 6 13 6 Fast Attach . | . . . . . Attach 35 | 6 1 4 17 7 Detach 12 | . . . 10 2 Swap 7 | . 1 1 1 4 Drop 12 | . 3 1 3 5 Fire 78 | . 5 14 44 15 Melee . | . . . . . Ram 1 | . . . . 1 Kick 1 | . . . 1 . Crush 10 | . 2 6 . 2 Escape Stasis . | . . . . . Rewire . | . . . . . Trap . | . . . . . Miscellaneous . | . . . . . Route ------- -11/Scrapyard -10/Materials -9/Materials (discovered 3 exits: *Mat / Min x2) -8/Materials -7/Factory History --------- Turn | Location | Event 38 | -11/Scrapyard | Discovered new exit (range 16) 171 | -11/Scrapyard | Entered Materials 308 | -10/Materials | Build established: Mutant 567 | -10/Materials | Discovered new exit (range 13) 588 | -10/Materials | Entered another Materials area 588 | -9/Materials | Evolved 2 slots: Power x1, Propulsion x1 804 | -9/Materials | Identified exit to Mines 1024 | -9/Materials | Discovered new exit (range 16) 1053 | -9/Materials | Entered another Materials area 1053 | -8/Materials | Evolved 2 slots: Propulsion x1, Weapon x1 1349 | -8/Materials | Build established: Skirmisher 1424 | -8/Materials | Lost 5 parts (2p1n2w) 1631 | -8/Materials | Discovered new exit (range 10) 1713 | -8/Materials | Entered Factory 1713 | -7/Factory | Evolved 2 slots: Utility x2 2308 | -7/Factory | Core integrity fell below 50% 2315 | -7/Factory | Core integrity fell below 20% 2317 | -7/Factory | Destroyed by L-41 Fighter with Axe Last Messages --------------- ALERT: Hostiles spotted, dispatching reinforcements to Terminal F008. R-06 Scavenger collects Weight Redist. System. R-06 Scavenger collects Prototype Flight Unit. Penetrated by Slug. Arm. Treads destroyed. Hvy. Rocket Launcher destroyed. Penetrated by Slug. Terrain Scanner destroyed. Hvy. Rocket Launcher destroyed. Arm. Treads destroyed. Broken Arm. Treads destroyed. Knocked back. G-47 Trooper destroyed. Hvy. Rocket Launcher destroyed. Destroyed Hvy. Rocket Launcher. Fusion Modulator explodes. K-01 Serf destroyed. Neutrino Reactor explodes. Slammed into L-41 Fighter. Map ----- +----------------------------------------------------+ | ?????????????????????????????????????????????????? | | ?????????????????????????????????????????????????? | | ?????????????????????????????????????????????????? | | ?????????????????????????????????????????????????? | | ?????????????????????????????????????????????????? | | ?????????????????????????????????????????????????? | | ?????????????????????????????????????????????????? | | ?????????????????????????????????????????????????? | | ?????????????????? ?????##??????????????????????? | | ????????????????? #???? ????????????????????? | | ?????????????????" #???? #??????????????????? | | ???????????????? #???? #??????????????????? | | ????????????????"" #???? #??????????????????? | | ?????????????? /???? #??????????????????? | | ????????????????"" ??#?? #??????????????????? | | ????????????????? ??### ###????????????????? | | ?????????????#####+#### #????????????????? | | ?????????????# ######???????????? | | ????????????## = ??????????? | | ????????????#; % r ??????????? | | ?????????????# ??????????? | | ??????#??????# g ?????????? | | ?????????????# %*g u ?????????? | | ????????????##% % =! H #????????????????? | | ????????????#; = #????????????????? | | ????????????## % @l ;##???????????????? | | ?????????#???# #??????????????? | | ????????????##% k !!! #??????????????? | | ???#?#??????# !! #??????????????? | | ????????????#T ! #??????????????? | | ????????????## # #??????????????? | | ?#?????????#?# # #??????????????? | | ?????????????# # #??????????????? | | ??????#??????#k # #??????????????? | | ????########## # #??????????????? | | ????# # ! #??????????????? | | ????# # [ !#??????????????? | | ????# "" # Y #??????????????? | | ????#""" """ """ ## ###########??????????????? | | #####"F """ """ ###?????????????????????????? | | #""" """ """ #???????????????????????????? | | # "" ! #???????????????????????????? | | # """ """ #???????????????????????????? | | # """ """ ?#???????????????????????????? | | # [ """ """??????????????????????????????? | | # ??????????????????????????? | | # """ """ """ ??????????????????????????? | | # """ """ """?? ???????????????????????????? | | # "" """ """ ?????????????????????????? | | [ = ?????????????????????????? | +----------------------------------------------------+ Best States ------------- Heat Dissipation 34 Energy Generation 23 Energy Capacity 450 Matter Stores 300 Matter Capacity 300 Sight Range 16 Terrain Scan Range 14 Terrain Scan Density 210 Evasion (%) 50 Recoil Reduction 4 Item Schematics ----------------- None Robot Schematics ------------------ None Fabricated ------------ Nothing Alien Tech Used ----------------- None Achievements -------------- None Challenges ------------ None Game ------ Seed ThermicWeaponsBank Manual? 0 Play Time 00:25:56 Cumulative 3.9 hours Start 2024.04.01 @ 11:23:52 End 2024.04.07 @ 10:26:42 Sessions 2 Manual Loads 0 Difficulty Rogue Special Mode None Game No. 10 Rogue 10 Adventurer 0 Explorer 0 Win Type - Total 0 Types 0/0/0/0/0/0/0/0/0 Lore% 2 Gallery% 9 Achievement% 12 Wizard Run 0 Options --------- Layout 1 ASCII 0 Keyboard 0 Movement Arrows Keybinds 0 Fullscreen 1 Font 32/SmallcapsGlow Map View 50x40 Zoom Use 0% Tactical HUD 0 Map Filters NONE Filters NONE Steam 1 RUN: cfa36c9c-f4ef-4826-bbad-95664b096841